fUST/lending_fUST_20260409
["ID","MTS","AMOUNT","RATE_DAILY","PERIOD"]
[420142963,1775717445436,-1032.082807,0.00021918,2]
[420142964,1775717445446,-1032.082807,0.00021918,2]
[420142965,1775717445455,-1364.791473,0.00021918,2]
[420142966,1775717445465,-1032.082807,0.00021918,2]
[420142967,1775717445475,-1364.791473,0.00021918,2]
[420142968,1775717445484,-1032.082807,0.00021918,2]
[420142969,1775717445493,-1364.791473,0.00021918,2]
[420142970,1775717445503,-1032.082807,0.00021918,2]
[420142971,1775717445512,-1364.791473,0.00021918,2]
[420142972,1775717445522,-1032.082807,0.00021918,2]
[420142973,1775717445531,-1364.791473,0.00021918,2]
[420142974,1775717445541,-1032.082807,0.00021918,2]
[420142975,1775717445551,-1364.791477,0.00021918,2]
[420142976,1775717445560,-1032.082807,0.00021918,2]
[420142977,1775717445570,-1032.082807,0.00021918,2]
[420142978,1775717445579,-1032.082807,0.00021918,2]
[420142979,1775717445588,-1032.082807,0.00021918,2]
[420142980,1775717445597,-1032.082807,0.00021918,2]
[420142981,1775717445607,-1032.082807,0.00021918,2]
[420142982,1775717445616,-1032.082807,0.00021918,2]
[420142983,1775717445625,-1032.082807,0.00021918,2]
[420142984,1775717445634,-1032.082808,0.00021918,2]
[420142985,1775717445643,-250.441313,0.00021918,2]
[420142986,1775717445653,-250.441313,0.00021918,2]
[420142987,1775717445662,-250.441313,0.00021918,2]
[420142988,1775717445672,-250.441313,0.00021918,2]
[420142989,1775717445681,-250.441313,0.00021918,2]
[420142990,1775717445691,-250.441313,0.00021918,2]
[420142991,1775717445700,-250.441313,0.00021918,2]
[420142992,1775717445709,-250.441313,0.00021918,2]
[420142993,1775717445718,-250.441313,0.00021918,2]
[420142994,1775717445727,-250.441313,0.00021918,2]
[420142995,1775717445736,-250.441313,0.00021918,2]
[420142996,1775717445745,-250.441313,0.00021918,2]
[420142997,1775717445754,-250.441313,0.00021918,2]
[420142998,1775717445766,-250.441313,0.00021918,2]
[420142999,1775717445775,-250.441313,0.00021918,2]
[420143000,1775717445784,-250.441313,0.00021918,2]
[420143001,1775717445794,-250.441313,0.00021918,2]
[420143002,1775717445804,-250.441313,0.00021918,2]
[420143003,1775717445813,-250.441313,0.00021918,2]
[420143004,1775717445823,-250.441309,0.00021918,2]
[420143005,1775717445832,-1334.99289,0.00021918,2]
[420143006,1775717445842,-1334.99289,0.00021918,2]
[420143007,1775717445852,-1334.99289,0.00021918,2]
[420143008,1775717445862,-1334.99289,0.00021918,2]
[420143009,1775717445871,-1334.99289,0.00021918,2]
[420143010,1775717445880,-1334.99289,0.00021918,2]
[420143011,1775717445890,-1334.99289,0.00021918,2]
[420143012,1775717445899,-1334.99289,0.00021918,2]
[420143013,1775717445908,-1334.99289,0.00021918,2]
[420143014,1775717445917,-1334.99289,0.00021918,2]
[420143015,1775717445927,-1334.99289,0.00021918,2]
[420143016,1775717445937,-1334.99289,0.00021918,2]
[420143017,1775717445946,-1334.99289,0.00021918,2]
[420143018,1775717445956,-1334.99289,0.00021918,2]
[420143019,1775717445966,-1334.99289,0.00021918,2]
[420143020,1775717445975,-1334.99289,0.00021918,2]
[420143021,1775717445985,-1334.99289,0.00021918,2]
[420143022,1775717445995,-1334.99289,0.00021918,2]
[420143023,1775717446005,-1334.99289,0.00021918,2]
[420143024,1775717446015,-1334.9929,0.00021918,2]
[420143025,1775717446024,-151.0,0.00021918,2]
[420143026,1775717446033,-151.0,0.00021918,2]
[420143027,1775717446043,-151.0,0.00021918,2]
[420143028,1775717446053,-151.0,0.00021918,2]
[420143029,1775717446062,-151.0,0.00021918,2]
[420143030,1775717446072,-156.735163,0.00021918,2]
[420143031,1775717446082,-151.0,0.00021918,2]
[420143032,1775717446091,-151.0,0.00021918,2]
[420143033,1775717446101,-151.0,0.00021918,2]
[420143034,1775717446110,-151.0,0.00021918,2]
[420143035,1775717446120,-151.0,0.00021918,2]
[420143036,1775717446130,-151.0,0.00021918,2]
[420143037,1775717446139,-151.0,0.00021918,2]
[420143038,1775717446149,-151.0,0.00021918,2]
[420143039,1775717446158,-151.0,0.00021918,2]
[420143040,1775717446168,-151.0,0.00021918,2]
[420143041,1775717446178,-151.0,0.00021918,2]
[420143042,1775717446187,-151.0,0.00021918,2]
[420143043,1775717446198,-151.0,0.00021918,2]
[420143044,1775717446207,-151.0,0.00021918,2]
[420143045,1775717446217,-151.0,0.00021918,2]
[420143046,1775717446226,-151.0,0.00021918,2]
[420143047,1775717446236,-151.0,0.00021918,2]
[420143048,1775717446246,-151.0,0.00021918,2]
[420143049,1775717446255,-151.0,0.00021918,2]
[420143050,1775717446265,-151.0,0.00021918,2]
[420143051,1775717446275,-151.0,0.00021918,2]
[420143052,1775717446285,-151.0,0.00021918,2]
[420143053,1775717446295,-151.0,0.00021918,2]
[420143054,1775717446305,-151.0,0.00021918,2]
[420143055,1775717446315,-175.941514,0.00021918,2]
[420143056,1775717446324,-151.0,0.00021918,2]
[420143057,1775717446334,-151.0,0.00021918,2]
[420143058,1775717446343,-4888.693498,0.00021918,2]
[420143059,1775717446353,-151.0,0.00021918,2]
[420143060,1775717446363,-4888.693498,0.00021918,2]
[420143061,1775717446372,-151.0,0.00021918,2]
[420143062,1775717446382,-4888.693498,0.00021918,2]
[420143063,1775717446392,-151.0,0.00021918,2]
[420143064,1775717446402,-4888.693498,0.00021918,2]
[420143065,1775717446412,-4888.693498,0.00021918,2]
[420143066,1775717446421,-4888.693498,0.00021918,2]
[420143067,1775717446431,-281.941993,0.00021918,2]
[420143068,1775717446441,-4888.693498,0.00021918,2]
[420143069,1775717446451,-4888.693498,0.00021918,2]
[420143070,1775717446461,-151.0,0.00021918,2]
[420143071,1775717446470,-4888.693498,0.00021918,2]
[420143072,1775717446480,-151.0,0.00021918,2]
[420143073,1775717446490,-4888.693498,0.00021918,2]
[420143074,1775717446499,-288.680488,0.00021918,2]
[420143075,1775717446509,-4888.693498,0.00021918,2]
[420143076,1775717446518,-151.0,0.00021918,2]
[420143077,1775717446528,-4888.693498,0.00021918,2]
[420143078,1775717446538,-151.0,0.00021918,2]
[420143079,1775717446547,-4888.693498,0.00021918,2]
[420143080,1775717446558,-151.0,0.00021918,2]
[420143081,1775717446568,-4888.693498,0.00021918,2]
[420143082,1775717446578,-151.0,0.00021918,2]
[420143083,1775717446587,-4888.693498,0.00021918,2]
[420143084,1775717446597,-151.0,0.00021918,2]
[420143085,1775717446607,-4888.693498,0.00021918,2]
[420143086,1775717446617,-151.0,0.00021918,2]
[420143087,1775717446627,-4888.693498,0.00021918,2]
[420143088,1775717446637,-151.0,0.00021918,2]
[420143089,1775717446647,-4888.693498,0.00021918,2]
[420143090,1775717446657,-151.0,0.00021918,2]
[420143091,1775717446667,-4402.32558324,0.00021918,2]
[420143099,1775717447302,-5000.0,0.00012542,2]
[420143100,1775717447313,-300.0,0.00016438,2]
[420143101,1775717447323,-217.90670372,0.00018449,2]
[420143102,1775717447333,-486.36791476,0.00021918,2]
[420143103,1775717447342,-151.0,0.00021918,2]
[420143104,1775717447352,-843.89301226,0.00021918,2]
[420143105,1775717447364,-4044.80048574,0.00021918,2]
[420143106,1775717447373,-294.078746,0.00021918,2]
[420143107,1775717447383,-214.236296,0.00021918,2]
[420143108,1775717447392,-214.236296,0.00021918,2]
[420143109,1775717447402,-214.236296,0.00021918,2]
[420143110,1775717447412,-214.236296,0.00021918,2]
[420143111,1775717447422,-214.236296,0.00021918,2]
[420143112,1775717447432,-214.236296,0.00021918,2]
[420143113,1775717447442,-214.236296,0.00021918,2]
[420143114,1775717447452,-214.236296,0.00021918,2]
[420143115,1775717447461,-214.236296,0.00021918,2]
[420143116,1775717447471,-151.0,0.00021918,2]
[420143117,1775717447481,-214.236296,0.00021918,2]
[420143118,1775717447490,-151.0,0.00021918,2]
[420143119,1775717447499,-151.0,0.00021918,2]
[420143120,1775717447508,-214.236296,0.00021918,2]
[420143121,1775717447518,-151.0,0.00021918,2]
[420143122,1775717447527,-214.236296,0.00021918,2]
[420143123,1775717447537,-101.07288717,0.00021918,2]
[420143125,1775718062340,-3686.55024036,0.00012897,10]
[420143158,1775718632800,-2425.80830328,0.0001264,2]
[420143162,1775718632812,-209.34182283,0.0001264,2]
[420143164,1775718632821,-3492.99610166,0.00012768,2]
[420143166,1775718632833,-859.11990399,0.00012768,2]
[420143167,1775718632845,-399.86526697,0.00012768,2]
[420143187,1775718643959,-248.01872738,0.00012768,2]
[420143188,1775718643969,-739.70036647,0.00012897,2]
[420143189,1775718643978,-603.0,0.00012897,2]
[420143190,1775718643988,-300.0,0.00013158,2]
[420143191,1775718643997,-1000.0,0.00013699,2]
[420143192,1775718644006,-300.0,0.00013972,2]
[420143193,1775718644016,-300.0,0.00013972,2]
[420143194,1775718644026,-300.0,0.00013972,2]
[420143195,1775718644035,-300.0,0.00013972,2]
[420143196,1775718644045,-300.0,0.00013972,2]
[420143197,1775718644055,-300.0,0.00013972,2]
[420143198,1775718644064,-300.0,0.00013972,2]
[420143199,1775718644074,-300.0,0.00013972,2]
[420143200,1775718644084,-300.0,0.00013972,2]
[420143201,1775718644093,-300.0,0.00013972,2]
[420143202,1775718644103,-29.69450644,0.00013972,2]
[420143203,1775718646754,-5000.0,0.00013832,2]
[420143204,1775718646763,-270.30549356,0.00013972,2]
[420143205,1775718646773,-300.0,0.00013972,2]
[420143206,1775718646782,-300.0,0.00013972,2]
[420143207,1775718646792,-300.0,0.00013972,2]
[420143208,1775718646801,-300.0,0.00013972,2]
[420143209,1775718646811,-600.0,0.0001425,2]
[420143210,1775718646821,-420.0,0.00014428,2]
[420143211,1775718646830,-219.5171997,0.00014755,2]
[420143212,1775718646839,-720.0,0.00015675,2]
[420143213,1775718646849,-587.0,0.0001582,2]
[420143214,1775718646859,-250.0,0.00016246,2]
[420143215,1775718646868,-322.48900301,0.00017243,2]
[420143218,1775719116688,987.0,9.001e-05,2]
[420143223,1775719241615,164.415492,7.233e-05,2]
[420143247,1775719832748,-5000.0,0.00010112,2]
[420143248,1775719832759,-674.48963353,0.00010214,2]
[420143249,1775719832769,-300.0,0.00010316,2]
[420143250,1775719832778,-300.0,0.00010316,2]
[420143251,1775719832787,-1200.0,0.00010316,2]
[420143252,1775719832797,-565.0,0.00010317,2]
[420143253,1775719832806,-164.415492,0.00010849,2]
[420143254,1775719832816,-300.0,0.00010954,2]
[420143255,1775719832826,-300.0,0.00010954,2]
[420143256,1775719832835,-300.0,0.00010954,2]
[420143257,1775719832845,-300.0,0.00010954,2]
[420143258,1775719832854,-300.0,0.00010954,2]
[420143259,1775719832864,-300.0,0.00010954,2]
[420143260,1775719832874,-300.0,0.00010954,2]
[420143261,1775719832883,-300.0,0.00010954,2]
[420143262,1775719832893,-300.0,0.00010954,2]
[420143263,1775719832903,-300.0,0.00010954,2]
[420143264,1775719832911,-300.0,0.00010954,2]
[420143265,1775719832921,-300.0,0.00010954,2]
[420143266,1775719832930,-300.0,0.00010954,2]
[420143267,1775719832939,-300.0,0.00010954,2]
[420143268,1775719832948,-300.0,0.00010954,2]
[420143269,1775719832957,-600.0,0.00011172,2]
[420143270,1775719832967,-420.0,0.00011344,2]
[420143271,1775719832976,-720.0,0.00012289,2]
[420143272,1775719832985,-587.0,0.00012474,2]
[420143273,1775719832994,-864.0,0.00013518,2]
[420143274,1775719833004,-1000.0,0.00013699,2]
[420143275,1775719833013,-823.0,0.00013717,2]
[420143276,1775719833022,-2518.7443767,0.00014344,2]
[420143277,1775719833031,-164.415492,0.00014465,2]
[420143278,1775719833041,-494.64531766,0.0001487,2]
[420143342,1775719838977,-1751.73676825,0.00014721,2]
[420143483,1775719847443,-2532.47527371,0.00014721,2]
[420143484,1775719847658,-715.78795804,0.00014721,2]
[420143485,1775719847667,-802.0,0.00015084,2]
[420143486,1775719847677,-204.68,0.00015287,2]
[420143487,1775719847686,-2518.7443767,0.00016185,2]
[420143488,1775719847695,-178.135297,0.00016312,2]
[420143489,1775719847708,-300.0,0.00016438,2]
[420143490,1775719847718,-276.57686401,0.00017463,2]
[420143491,1775719847728,-3467.51705356,0.00017464,2]
[420143562,1775720060645,361.24034964,1e-06,2]
[420143563,1775720063286,180.62,1e-06,2]
[420143646,1775721031787,-384.768375,0.00012554,2]
[420143673,1775721038219,-346.03710708,0.00012554,2]
[420143687,1775721041217,-4269.19451792,0.00012554,2]
[420143688,1775721041227,-598.0,0.00012554,2]
[420143689,1775721041236,-300.0,0.00012681,2]
[420143690,1775721041245,-300.0,0.00012681,2]
[420143691,1775721041255,-300.0,0.00012681,2]
[420143692,1775721041264,-358.43078868,0.00012681,2]
[420143698,1775721043027,-1264.08767955,0.00012428,2]
[420143699,1775721043038,-841.56921132,0.00012681,2]
[420143700,1775721043049,-300.0,0.00012681,2]
[420143701,1775721043059,-49.72680047,0.0001281,2]
[420143706,1775721046002,-340.99942252,0.0001281,2]
[420143707,1775721046012,-307.89353207,0.00012811,2]
[420143708,1775721046026,-82.83269092,0.00012811,2]
[420143709,1775721046036,-390.72622299,0.00012812,2]
[420143710,1775721046047,-322.27543134,0.00012941,2]
[420143711,1775721046057,-5510.23826583,0.00012941,2]
[420143712,1775721046067,-390.72622299,0.00012941,2]
[420143713,1775721046076,-1107.17569781,0.00013146,2]
[420143714,1775721046086,-390.72622299,0.00013146,2]
[420143715,1775721046096,-640.29674,0.00013441,2]
[420143716,1775721046106,-384.000322,0.00013441,2]
[420143717,1775721046116,-1259.3721883,0.00013441,2]
[420143718,1775721046126,-1000.0,0.00013699,2]
[420143719,1775721046136,-507.58526518,0.0001382,2]
[420143720,1775721046146,-500.0,0.0001385,2]
[420143721,1775721046155,-507.0954285,0.0001385,2]
[420143722,1775721046165,-500.0,0.0001385,2]
[420143723,1775721046175,-500.0,0.0001385,2]
[420143724,1775721046184,-420.0,0.00013911,2]
[420143725,1775721046194,-300.0,0.00013972,2]
[420143726,1775721046204,-300.0,0.00013972,2]
[420143727,1775721046213,-300.0,0.00013972,2]
[420143728,1775721046223,-300.0,0.00013972,2]
[420143729,1775721046232,-300.0,0.00013972,2]
[420143730,1775721046242,-300.0,0.00013972,2]
[420143731,1775721046252,-300.0,0.00013972,2]
[420143732,1775721046262,-300.0,0.00013972,2]
[420143733,1775721046271,-300.0,0.00013972,2]
[420143734,1775721046281,-300.0,0.00013972,2]
[420143735,1775721046291,-300.0,0.00013972,2]
[420143736,1775721046301,-300.0,0.00013972,2]
[420143737,1775721046310,-300.0,0.00013972,2]
[420143738,1775721046319,-300.0,0.00013972,2]
[420143739,1775721046328,-300.0,0.00013972,2]
[420143740,1775721046338,-600.0,0.0001425,2]
[420143741,1775721046348,-500.0,0.00014275,2]
[420143742,1775721046358,-500.0,0.00014398,2]
[420143743,1775721046368,-500.0,0.00014398,2]
[420143744,1775721046378,-1000.0,0.00014398,2]
[420143745,1775721046388,-187.37421942,0.00014437,2]
[420143746,1775721046397,-500.0,0.00014437,2]
[420143747,1775721046406,-500.0,0.00014437,2]
[420143748,1775721046416,-500.0,0.00014437,2]
[420143749,1775721046426,-500.0,0.00014437,2]
[420143750,1775721046435,-500.0,0.00014437,2]
[420143751,1775721046444,-480.93386916,0.00014437,2]
[420143752,1775721046454,-39457.4975958,0.00014438,2]
[420143753,1775721046463,-180.65050638,0.00014823,2]
[420143754,1775721046473,-1259.3721883,0.00014972,2]
[420143755,1775721046483,-1111.305934,0.0001508,2]
[420143756,1775721046492,-640.29674,0.00015197,2]
[420143757,1775721046502,-587.0,0.00015261,2]
[420143758,1775721046512,-384.000322,0.00015634,2]
[420143759,1775721046521,-720.0,0.00015675,2]
[420143760,1775721046531,-219.79587601,0.0001586,2]
[420143761,1775721046540,-1000.0,0.00016249,2]
[420143762,1775721046550,-300.0,0.00016438,2]
[420143763,1775721046559,-1259.3721883,0.00016502,2]
[420143764,1775721046569,-823.0,0.00016742,2]
[420143765,1775721046578,-640.29674,0.00016954,2]
[420143766,1775721046587,-864.0,0.00017243,2]
[420143767,1775721046597,-384.000322,0.00017828,2]
[420143768,1775721046607,-330.0,0.00017964,2]
[420143769,1775721046616,-1259.3721883,0.00018033,2]
[420143770,1775721046626,-1152.0,0.00018366,2]
[420143771,1775721046636,-640.29674,0.0001871,2]
[420143772,1775721046645,-3139.79615594,0.00018888,2]
[420143773,1775721046655,-1000.0,0.00018967,2]
[420143774,1775721046664,-200.0,0.00019178,2]
[420143775,1775721046674,-1849.0,0.00019462,5]
[420143776,1775721046683,-11089.0,0.00019462,5]
[420143777,1775721046693,-363.0,0.00019632,2]
[420143778,1775721046702,-4702.24404882,0.00019662,2]
[420143779,1775721046712,-391.46662539,0.00019999,2]
[420143780,1775721046722,-500.0,0.00019999,2]
[420143781,1775721046732,-196.91085675,0.00019999,2]
[420143782,1775721046741,-500.0,0.00019999,2]
[420143783,1775721046751,-500.0,0.00019999,2]
[420143784,1775721046760,-500.0,0.00019999,2]
[420143785,1775721046770,-500.0,0.00019999,2]
[420143786,1775721046780,-500.0,0.00019999,2]
[420143787,1775721046790,-500.0,0.00019999,2]
[420143788,1775721046800,-500.0,0.00019999,2]
[420143789,1775721046809,-500.0,0.00019999,2]
[420143790,1775721046819,-198.86474903,0.00019999,2]
[420143791,1775721046828,-500.0,0.00019999,2]
[420143792,1775721046838,-243.24986536,0.00019999,2]
[420143793,1775721046848,-500.0,0.00019999,2]
[420143794,1775721046857,-500.0,0.00019999,2]
[420143795,1775721046867,-500.0,0.00019999,2]
[420143796,1775721046877,-1201.24372183,0.0002,2]
[420143797,1775721046887,-687.02,0.0002,2]
[420143798,1775721046897,-900.0,0.0002,2]
[420143799,1775721046907,-1200.0,0.0002,2]
[420143800,1775721046916,-1670.0,0.0002,2]
[420143801,1775721046927,-1400.0,0.0002,2]
[420143802,1775721046936,-1100.0,0.0002,2]
[420143803,1775721046946,-1979.14,0.0002,2]
[420143804,1775721046956,-776.54,0.0002,2]
[420143805,1775721046966,-1600.0,0.0002,2]
[420143806,1775721046976,-1802.34,0.0002,2]
[420143807,1775721046986,-2600.0,0.0002,2]
[420143808,1775721046996,-3500.0,0.0002,2]
[420143809,1775721047006,-2586.19,0.0002,2]
[420143810,1775721047016,-2940.0,0.0002,2]
[420143811,1775721047026,-3200.0,0.0002,2]
[420143812,1775721047035,-1176.68,0.0002,2]
[420143813,1775721047044,-2100.0,0.0002,2]
[420143814,1775721047054,-1900.0,0.0002,2]
[420143815,1775721047064,-1400.0,0.0002,2]
[420143816,1775721047074,-1333.57,0.0002,2]
[420143817,1775721047083,-2080.0,0.0002,2]
[420143818,1775721047092,-678.16,0.0002,2]
[420143819,1775721047102,-1400.0,0.0002,2]
[420143820,1775721047112,-1600.0,0.0002,2]
[420143821,1775721047122,-200.0,0.0002,2]
[420143822,1775721047132,-700.0,0.0002,2]
[420143823,1775721047142,-1080.0,0.0002,2]
[420143824,1775721047151,-1220.0,0.0002,2]
[420143825,1775721047160,-279.61,0.0002,2]
[420143826,1775721047169,-650.0,0.0002,2]
[420143827,1775721047179,-495.59,0.0002,2]
[420143828,1775721047188,-384.000322,0.00020021,2]
[420143829,1775721047198,-180.08644149,0.00020037,2]
[420143830,1775721047207,-355.739,0.0002006,2]
[420143831,1775721047216,-300.0,0.00020148,2]
[420143832,1775721047226,-559.0,0.00020225,2]
[420143833,1775721047236,-2600.0,0.00020232,2]
[420143834,1775721047245,-559.0,0.00020277,2]
[420143835,1775721047255,-559.0,0.00020345,2]
[420143836,1775721047264,-4380.0,0.00020363,2]
[420143837,1775721047273,-559.0,0.00020402,2]
[420143838,1775721047282,-559.0,0.00020405,2]
[420143839,1775721047292,-559.0,0.00020522,2]
[420143840,1775721047301,-559.0,0.00020541,2]
[420143841,1775721047310,-174.61919141,0.00020556,2]
[420143842,1775721047320,-2150.738,0.00020556,2]
[420143843,1775721047329,-607.85989136,0.00020556,2]
[420143844,1775721047342,-58.857023,0.00020556,2]
[420143845,1775721047351,-559.0,0.00020596,2]
[420143846,1775721047361,-290.02334148,0.00020653,2]
[420143847,1775721047372,-268.97665852,0.00020653,2]
[420143848,1775721047381,-559.0,0.00020661,2]
[420143849,1775721047391,-190.74,0.00020692,2]
[420143850,1775721047400,-559.0,0.00020807,2]
[420143851,1775721047409,-2000.0,0.00020815,2]
[420143852,1775721047418,-1000.0,0.00020864,2]
[420143853,1775721047429,-244.0,0.00020864,2]
[420143854,1775721047438,-2500.0,0.00020975,2]
[420143855,1775721047448,-4844.19415612,0.00021,2]
[420143856,1775721047459,-1534.80584388,0.00021,2]
[420143857,1775721047468,-559.0,0.00021005,2]
[420143858,1775721047477,-2039.00129324,0.00021104,2]
[420143859,1775721047492,-191.31401276,0.00021104,2]
[420143860,1775721047501,-378.06598722,0.0002117,2]
[420143866,1775721681904,-2999.3708055,0.0001341,10]
[420143867,1775721681920,-2000.6291945,0.0001341,10]
[420143868,1775721681935,-500.0,0.00013545,2]
[420143869,1775721681945,-445.41370215,0.00013545,2]
[420143870,1775721681955,-613.0,0.00013545,2]
[420143871,1775721681965,-1000.0,0.00013699,2]
[420143872,1775721681975,-440.95710335,0.0001382,2]
[420143880,1775722009052,164.415494,7.949e-05,2]
[420143884,1775722207701,4314.32732825,7.6e-05,2]
[420143920,1775722238394,-604.0,0.0001301,2]
[420143921,1775722238404,-620.85871026,0.00013011,2]
[420143990,1775722246304,-4200.01766248,0.00013011,2]
[420143992,1775722246313,-300.0,0.00013141,2]
[420143994,1775722246323,-1200.0,0.00013141,2]
[420143996,1775722246332,-517.45036582,0.00013142,2]
[420143999,1775722246356,-2030.07897326,0.00013142,2]
[420144410,1775723438379,-2942.59355223,0.00013159,2]
[420144411,1775723438551,-1042.37256033,0.00013159,2]
[420144421,1775723441101,-459.34763194,0.00013159,2]
[420144491,1775723446577,-555.6862555,0.00013159,2]
[420144492,1775723446587,-1000.0,0.00013699,2]
[420144493,1775723446597,-259.55718184,0.0001382,2]
[420144494,1775723446607,-389.33577276,0.00014095,2]
[420144495,1775723446617,-300.0,0.00014095,2]
[420144496,1775723446628,-300.0,0.00014095,2]
[420144497,1775723446637,-300.0,0.00014095,2]
[420144498,1775723446646,-300.0,0.00014095,2]
[420144499,1775723446656,-300.0,0.00014095,2]
[420144500,1775723446666,-300.0,0.00014095,2]
[420144501,1775723446675,-300.0,0.00014095,2]
[420144502,1775723446684,-300.0,0.00014095,2]
[420144503,1775723446693,-300.0,0.00014095,2]
[420144504,1775723446703,-300.0,0.00014095,2]
[420144505,1775723446712,-300.0,0.00014095,2]
[420144506,1775723446722,-300.0,0.00014095,2]
[420144507,1775723446732,-300.0,0.00014095,2]
[420144508,1775723446741,-300.0,0.00014095,2]
[420144509,1775723446750,-300.0,0.00014095,2]
[420144510,1775723446759,-1133.36885017,0.00014175,2]
[420144511,1775723446769,-600.0,0.00014376,2]
[420144512,1775723446779,-218.81639683,0.00014476,2]
[420144514,1775723446787,-467.04120944,0.00015,2]
[420144515,1775723446797,-555.652967,0.00015069,2]
[420144517,1775723446806,-2226.1268008,0.00015104,2]
[420144519,1775723446816,-720.0,0.00015813,2]
[420144521,1775723446824,-164.415494,0.00015898,2]
[420144523,1775723446833,-1079.67279777,0.00016058,2]
[420144525,1775723446843,-969.77949745,0.00016058,2]
[420144881,1775723500743,-1387.9627021,0.00015897,2]
[420144887,1775723660447,151.0,9e-05,2]
[420144888,1775723699736,151.0,9e-05,2]
[420144890,1775723735188,151.0,9e-05,2]
[420144894,1775723843381,5000.0,9.001e-05,2]
[420144895,1775723865561,1461.9480068,9.001e-05,2]
[420145059,1775724593482,300.0,9e-05,2]
[420145060,1775724613706,5000.0,9.001e-05,2]
[420145066,1775724632366,-547.0,9.1e-05,2]
[420145067,1775724632377,-169.58295878,9.1e-05,2]
[420145069,1775724632386,-2000.0,9.2e-05,2]
[420145070,1775724632397,-2000.0,9.3e-05,2]
[420145072,1775724632406,-283.41704122,9.4e-05,2]
[420145171,1775724642718,-5000.0,9.306e-05,2]
[420145173,1775724642728,-1716.58295878,9.4e-05,2]
[420145175,1775724642738,-2000.0,9.5e-05,2]
[420145177,1775724642748,-300.0,9.599e-05,2]
[420145179,1775724642757,-1959.20389182,9.6e-05,2]
[420145287,1775724643803,-1888.90328211,9.213e-05,2]
[420145304,1775724643985,-3111.09671789,9.213e-05,2]
[420145305,1775724643995,-40.79610818,9.6e-05,2]
[420145307,1775724644005,-14.58362679,9.7e-05,2]
[420145310,1775724644016,-1275.38190145,9.7e-05,2]
[420145579,1775724646995,-710.03447176,9.7e-05,2]
[420145581,1775724647005,-9913.36346029,9.791e-05,2]
[420145589,1775724647066,-5826.10879007,9.791e-05,2]
[420145590,1775724647075,-300.0,9.791e-05,2]
[420145591,1775724647085,-300.0,9.791e-05,2]
[420145592,1775724647094,-300.0,9.791e-05,2]
[420145593,1775724647104,-18.88606745,9.791e-05,2]
[420145612,1775724684940,158.4099187,6.972e-05,2]
[420145634,1775725051902,5000.0,9.001e-05,2]
[420145635,1775725073751,5000.0,9.001e-05,2]
[420145658,1775725087955,5000.0,9.001e-05,2]
[420145764,1775725229110,5000.0,9.001e-05,2]
[420145765,1775725243004,-241.05021167,9.123e-05,2]
[420145766,1775725243027,-58.94978833,9.123e-05,2]
[420145768,1775725272600,-241.05021167,9.123e-05,2]
[420146067,1775725839207,-258.94978833,9.123e-05,2]
[420146068,1775725839216,-270.26202494,9.123e-05,2]
[420146069,1775725839226,-548.0,9.123e-05,2]
[420146070,1775725839236,-300.0,9.304e-05,2]
[420146071,1775725839245,-300.0,9.305e-05,2]
[420146072,1775725839254,-300.0,9.305e-05,2]
[420146073,1775725839263,-45.17117794,9.305e-05,2]
[420146074,1775725839275,-254.82882206,9.305e-05,2]
[420146075,1775725839284,-300.0,9.305e-05,2]
[420146076,1775725839293,-300.0,9.305e-05,2]
[420146077,1775725839303,-300.0,9.305e-05,2]
[420146078,1775725839312,-300.0,9.305e-05,2]